[Event "*** Titled Tuesday Blitz"]
[Site "Chess.com"]
[Date "2021.03.02"]
[Round "1"]
[White "Gerodot71"]
[Black "ellennilssen"]
[Result "1-0"]
[WhiteElo "2560"]
[BlackElo "2250"]
[TimeControl "180+1"]
[EndTime "10:06:45 PST"]
[Termination "Gerodot71 won by resignation"]

1. d4 {[%clk 0:03:00.9]} 1... Nf6 {[%clk 0:02:58.2]} 2. c4 {[%clk 0:03:01.2]}
2... g6 {[%clk 0:02:52.9]} 3. Nc3 {[%clk 0:03:01.1]} 3... d5 {[%clk 0:02:51.1]}
4. cxd5 {[%clk 0:03:00.8]} 4... Nxd5 {[%clk 0:02:45.6]} 5. e4 {[%clk 0:03:00.5]}
5... Nxc3 {[%clk 0:02:43.2]} 6. bxc3 {[%clk 0:03:00.9]} 6... Bg7 {[%clk
0:02:44.1]} 7. Nf3 {[%clk 0:02:58.7]} 7... c5 {[%clk 0:02:41.9]} 8. Bb5+ {[%clk
0:02:58.5]} 8... Nc6 {[%clk 0:02:36.4]} 9. O-O {[%clk 0:02:56.5]} 9... a6 {[%clk
0:02:35.8]} 10. Be2 {[%clk 0:02:54.3]} 10... cxd4 {[%clk 0:02:31.9]} 11. cxd4
{[%clk 0:02:54.5]} 11... Nxd4 {[%clk 0:02:31]} 12. Nxd4 {[%clk 0:02:54.1]} 12...
Qxd4 {[%clk 0:02:31.9]} 13. Rb1 {[%clk 0:02:45.9]} 13... Qxd1 {[%clk 0:02:29.4]}
14. Rxd1 {[%clk 0:02:46.8]} 14... O-O {[%clk 0:02:29.7]} 15. Be3 {[%clk
0:02:43.9]} 15... b5 {[%clk 0:02:21.4]} 16. a4 {[%clk 0:02:31.4]} 16... bxa4
{[%clk 0:02:17]} 17. Rb4 {[%clk 0:02:31]} 17... a3 {[%clk 0:02:11.3]} 18. Ra4
{[%clk 0:02:30.1]} 18... Be6 {[%clk 0:02:04.6]} 19. Rxa3 {[%clk 0:02:27.9]}
19... Rfd8 {[%clk 0:02:02.5]} 20. Rxd8+ {[%clk 0:01:52]} 20... Rxd8 {[%clk
0:02:03.4]} 21. Rxa6 {[%clk 0:01:52.4]} 21... h5 {[%clk 0:01:51.9]} 22. h4
{[%clk 0:01:47.8]} 22... Bf6 {[%clk 0:01:50.1]} 23. g3 {[%clk 0:01:47.1]} 23...
Kg7 {[%clk 0:01:49.8]} 24. Kg2 {[%clk 0:01:45.9]} 24... Bd4 {[%clk 0:01:41.1]}
25. Bf4 {[%clk 0:01:36.2]} 25... Rc8 {[%clk 0:01:32.6]} 26. Ra4 {[%clk
0:01:21.5]} 26... Bf6 {[%clk 0:01:24]} 27. e5 {[%clk 0:01:17.8]} 27... Bd5+
{[%clk 0:01:14]} 28. Bf3 {[%clk 0:01:15.9]} 28... Bxf3+ {[%clk 0:00:52.1]} 29.
Kxf3 {[%clk 0:01:16.8]} 29... Bxe5 {[%clk 0:00:45.8]} 30. Bxe5+ {[%clk
0:01:16.6]} 30... f6 {[%clk 0:00:46.7]} 31. Bf4 {[%clk 0:01:15.6]} 31... Rc3+
{[%clk 0:00:36.9]} 32. Kg2 {[%clk 0:01:14.7]} 32... e5 {[%clk 0:00:34.8]} 33.
Ra7+ {[%clk 0:01:13.7]} 33... Kg8 {[%clk 0:00:32.6]} 34. Bh6 {[%clk 0:01:13]}
34... Rc6 {[%clk 0:00:26.9]} 35. Kf3 {[%clk 0:01:08.5]} 35... Re6 {[%clk
0:00:26.7]} 36. Ke4 {[%clk 0:01:04.2]} 36... Rd6 {[%clk 0:00:27.4]} 37. Be3
{[%clk 0:00:57]} 37... Kh8 {[%clk 0:00:26.2]} 38. Bc5 {[%clk 0:00:52.8]} 38...
Rd2 {[%clk 0:00:24.1]} 39. Rf7 {[%clk 0:00:47]} 39... Rc2 {[%clk 0:00:19.4]} 40.
Be3 {[%clk 0:00:46.5]} 40... f5+ {[%clk 0:00:19.3]} 41. Kxe5 {[%clk 0:00:46.1]}
41... Rc6 {[%clk 0:00:19]} 42. Rf6 {[%clk 0:00:45.9]} 1-0

[Event "*** Titled Tuesday Blitz"]
[Site "Chess.com"]
[Date "2021.03.02"]
[Round "1"]
[White "Snowflake"]
[Black "Szparu"]
[Result "1-0"]
[WhiteElo "2362"]
[BlackElo "2645"]
[TimeControl "180+1"]
[EndTime "10:06:46 PST"]
[Termination "Snowflake won on time"]

1. d4 {[%clk 0:01:11.3]} 1... Nf6 {[%clk 0:02:59.2]} 2. Nf3 {[%clk 0:01:12.2]}
2... g6 {[%clk 0:02:57.6]} 3. Nc3 {[%clk 0:01:11.3]} 3... d5 {[%clk 0:02:26.6]}
4. Bg5 {[%clk 0:01:10.6]} 4... Bg7 {[%clk 0:02:26.4]} 5. e3 {[%clk 0:01:10.2]}
5... O-O {[%clk 0:02:26.2]} 6. Bd3 {[%clk 0:01:10.5]} 6... c5 {[%clk 0:02:26.2]}
7. dxc5 {[%clk 0:01:11.4]} 7... Nc6 {[%clk 0:02:17.6]} 8. O-O {[%clk 0:01:10.7]}
8... h6 {[%clk 0:02:11.9]} 9. Bh4 {[%clk 0:01:09.1]} 9... Qa5 {[%clk 0:02:01.3]}
10. Bg3 {[%clk 0:01:03.9]} 10... Qxc5 {[%clk 0:02:00.2]} 11. Ne5 {[%clk
0:01:04.5]} 11... Rd8 {[%clk 0:01:55]} 12. Ne2 {[%clk 0:01:03.7]} 12... Bd7
{[%clk 0:01:48.3]} 13. c3 {[%clk 0:01:03]} 13... a5 {[%clk 0:01:45.6]} 14. Nd4
{[%clk 0:01:03.2]} 14... Be8 {[%clk 0:01:43.9]} 15. Re1 {[%clk 0:01:02.4]} 15...
Ne4 {[%clk 0:01:43.7]} 16. Nexc6 {[%clk 0:01:01.5]} 16... bxc6 {[%clk
0:01:42.4]} 17. Bxe4 {[%clk 0:01:02]} 17... dxe4 {[%clk 0:01:42.5]} 18. Qc2
{[%clk 0:01:02.9]} 18... e5 {[%clk 0:01:39.9]} 19. Nb3 {[%clk 0:01:01.9]} 19...
Qc4 {[%clk 0:01:37.8]} 20. Rad1 {[%clk 0:01:02.2]} 20... a4 {[%clk 0:01:30.9]}
21. Nd2 {[%clk 0:01:00.6]} 21... Qd3 {[%clk 0:01:29.9]} 22. Qc1 {[%clk
0:00:57.6]} 22... f5 {[%clk 0:01:25]} 23. c4 {[%clk 0:00:50.9]} 23... Bf7 {[%clk
0:01:21.3]} 24. Nf3 {[%clk 0:00:44.3]} 24... Qxc4 {[%clk 0:01:20.7]} 25. Nxe5
{[%clk 0:00:45.2]} 25... Qxc1 {[%clk 0:01:08.7]} 26. Rxc1 {[%clk 0:00:46.1]}
26... Bxa2 {[%clk 0:01:09.2]} 27. Nxc6 {[%clk 0:00:44.7]} 27... Re8 {[%clk
0:00:51.6]} 28. Nd4 {[%clk 0:00:43.5]} 28... g5 {[%clk 0:00:45.9]} 29. Bd6
{[%clk 0:00:43.3]} 29... f4 {[%clk 0:00:44.3]} 30. Bc5 {[%clk 0:00:42.4]} 30...
Rac8 {[%clk 0:00:42.6]} 31. Ba3 {[%clk 0:00:41.7]} 31... Bd5 {[%clk 0:00:41.4]}
32. Nf5 {[%clk 0:00:40.2]} 32... Be5 {[%clk 0:00:26]} 33. Rxc8 {[%clk
0:00:38.7]} 1-0

[Event "*** Titled Tuesday Blitz"]
[Site "Chess.com"]
[Date "2021.03.02"]
[Round "1"]
[White "onetowin"]
[Black "NikolaN98"]
[Result "0-1"]
[WhiteElo "2148"]
[BlackElo "2510"]
[TimeControl "180+1"]
[EndTime "10:06:47 PST"]
[Termination "NikolaN98 won by resignation"]

1. d4 {[%clk 0:02:56.8]} 1... e6 {[%clk 0:02:58]} 2. Nf3 {[%clk 0:02:56.6]} 2...
f5 {[%clk 0:02:57.8]} 3. g3 {[%clk 0:02:56.7]} 3... Nf6 {[%clk 0:02:57.9]} 4.
Bg2 {[%clk 0:02:56.8]} 4... Be7 {[%clk 0:02:57.9]} 5. O-O {[%clk 0:02:56.8]}
5... O-O {[%clk 0:02:57.7]} 6. c4 {[%clk 0:02:57.7]} 6... d6 {[%clk 0:02:57.3]}
7. Nc3 {[%clk 0:02:57.5]} 7... a5 {[%clk 0:02:56.9]} 8. Qc2 {[%clk 0:02:52.5]}
8... Nc6 {[%clk 0:02:56.3]} 9. d5 {[%clk 0:02:51]} 9... Nb4 {[%clk 0:02:55.9]}
10. Qb1 {[%clk 0:02:49.4]} 10... e5 {[%clk 0:02:55.8]} 11. e4 {[%clk 0:02:23.9]}
11... Nxe4 {[%clk 0:02:41.1]} 12. Nxe4 {[%clk 0:02:20]} 12... fxe4 {[%clk
0:02:40.7]} 13. Qxe4 {[%clk 0:01:56.1]} 13... Bf5 {[%clk 0:02:39]} 14. Qe2
{[%clk 0:01:56.7]} 14... Bd3 {[%clk 0:02:37.8]} 15. Qd2 {[%clk 0:01:44.7]} 15...
Bxc4 {[%clk 0:02:31.2]} 16. Re1 {[%clk 0:01:40.5]} 16... Bxd5 {[%clk 0:02:21.6]}
17. Ng5 {[%clk 0:01:23.8]} 17... Bxg2 {[%clk 0:02:18.2]} 18. Ne6 {[%clk
0:01:22.8]} 18... Qd7 {[%clk 0:02:11.2]} 19. Nxf8 {[%clk 0:01:22.2]} 19... Qh3
{[%clk 0:02:04.3]} 20. f4 {[%clk 0:00:53.4]} 20... Bc6 {[%clk 0:02:01.1]} 21.
Ng6 {[%clk 0:00:41]} 21... hxg6 {[%clk 0:01:58.4]} 22. fxe5 {[%clk 0:00:40.6]}
22... Rf8 {[%clk 0:01:52.4]} 23. Qe2 {[%clk 0:00:21.4]} 23... Nd3 {[%clk
0:01:45.1]} 24. Rf1 {[%clk 0:00:14.6]} 24... Nxe5 {[%clk 0:00:46.7]} 25. Rxf8+
{[%clk 0:00:11.8]} 25... Bxf8 {[%clk 0:00:45.1]} 26. Bf4 {[%clk 0:00:11.7]}
26... Nf3+ {[%clk 0:00:42.5]} 27. Kf2 {[%clk 0:00:11.5]} 27... Qxh2+ {[%clk
0:00:41.7]} 28. Ke3 {[%clk 0:00:11.4]} 28... Qxe2+ {[%clk 0:00:40.5]} 29. Kxe2
{[%clk 0:00:12.3]} 29... Be7 {[%clk 0:00:37.6]} 30. Rc1 {[%clk 0:00:10]} 30...
Bf6 {[%clk 0:00:34.3]} 31. Rxc6 {[%clk 0:00:08.2]} 31... Nd4+ {[%clk 0:00:33.9]}
32. Kd3 {[%clk 0:00:07.7]} 32... Nxc6 {[%clk 0:00:33.7]} 33. Bc1 {[%clk
0:00:07.5]} 33... Nb4+ {[%clk 0:00:33.4]} 0-1

[Event "*** Titled Tuesday Blitz"]
[Site "Chess.com"]
[Date "2021.03.02"]
[Round "1"]
[White "r31415"]
[Black "enriquebutti"]
[Result "0-1"]
[WhiteElo "2498"]
[BlackElo "2170"]
[TimeControl "180+1"]
[EndTime "10:06:48 PST"]
[Termination "enriquebutti won by resignation"]

1. d4 {[%clk 0:03:00.7]} 1... d5 {[%clk 0:02:59.3]} 2. c4 {[%clk 0:03:00.9]}
2... c6 {[%clk 0:02:59.2]} 3. Nf3 {[%clk 0:03:01.8]} 3... e6 {[%clk 0:02:58.7]}
4. e3 {[%clk 0:03:00.7]} 4... Nf6 {[%clk 0:02:58.1]} 5. b3 {[%clk 0:03:00.7]}
5... Ne4 {[%clk 0:02:49.9]} 6. Qc2 {[%clk 0:02:57]} 6... Bb4+ {[%clk 0:02:48.8]}
7. Nfd2 {[%clk 0:02:53.8]} 7... Qf6 {[%clk 0:02:42.8]} 8. f3 {[%clk 0:02:29.4]}
8... Qh4+ {[%clk 0:02:40.4]} 9. Ke2 {[%clk 0:02:24]} 9... Qf2+ {[%clk
0:02:31.1]} 10. Kd3 {[%clk 0:02:15.3]} 10... Nxd2 {[%clk 0:02:23.3]} 11. Bxd2
{[%clk 0:02:12.1]} 11... Bd6 {[%clk 0:02:11.2]} 12. Bc3 {[%clk 0:02:01.7]} 12...
Qh4 {[%clk 0:02:09.6]} 13. Nd2 {[%clk 0:02:01.2]} 13... O-O {[%clk 0:02:07.8]}
14. g3 {[%clk 0:01:44.7]} 14... Bxg3 {[%clk 0:01:53.1]} 15. Be2 {[%clk
0:01:27.5]} 15... Bd6 {[%clk 0:01:47.1]} 16. Rag1 {[%clk 0:01:24.4]} 16... Nd7
{[%clk 0:01:40.7]} 17. Rg2 {[%clk 0:01:18]} 17... e5 {[%clk 0:01:28.2]} 18. Rhg1
{[%clk 0:01:17.6]} 18... g6 {[%clk 0:01:28]} 19. cxd5 {[%clk 0:01:04.5]} 19...
cxd5 {[%clk 0:01:26.7]} 20. Bf1 {[%clk 0:00:44.2]} 20... Re8 {[%clk 0:01:19.7]}
21. Qb2 {[%clk 0:00:32.8]} 21... e4+ {[%clk 0:01:18.8]} 22. Ke2 {[%clk
0:00:31.4]} 22... Nf6 {[%clk 0:01:12.3]} 23. f4 {[%clk 0:00:31]} 23... Bg4+
{[%clk 0:01:11]} 24. Rxg4 {[%clk 0:00:26.4]} 24... Nxg4 {[%clk 0:01:09.2]} 25.
Rg2 {[%clk 0:00:27.3]} 25... Nxh2 {[%clk 0:01:05.8]} 26. b4 {[%clk 0:00:20.1]}
26... Rac8 {[%clk 0:01:04]} 27. Nb3 {[%clk 0:00:17]} 27... Nxf1 {[%clk
0:01:02.3]} 28. Kxf1 {[%clk 0:00:16.7]} 28... Qh1+ {[%clk 0:01:01.5]} 29. Kf2
{[%clk 0:00:16.3]} 29... b6 {[%clk 0:00:50]} 30. Nd2 {[%clk 0:00:11.9]} 30...
Rc7 {[%clk 0:00:47.3]} 31. Nf1 {[%clk 0:00:05.7]} 31... Qh4+ {[%clk 0:00:44.7]}
32. Ng3 {[%clk 0:00:04.9]} 32... Rec8 {[%clk 0:00:43]} 33. Kg1 {[%clk
0:00:02.1]} 0-1

[Event "*** Titled Tuesday Blitz"]
[Site "Chess.com"]
[Date "2021.03.02"]
[Round "1"]
[White "blitis"]
[Black "PattyCastillo"]
[Result "1-0"]
[WhiteElo "2495"]
[BlackElo "2033"]
[TimeControl "180+1"]
[EndTime "10:06:49 PST"]
[Termination "blitis won by resignation"]

1. e4 {[%clk 0:03:00.3]} 1... c5 {[%clk 0:02:58.4]} 2. Nf3 {[%clk 0:03:00.1]}
2... d6 {[%clk 0:02:58.2]} 3. d4 {[%clk 0:02:59.6]} 3... cxd4 {[%clk 0:02:58.7]}
4. Nxd4 {[%clk 0:03:00.4]} 4... Nf6 {[%clk 0:02:59.1]} 5. Nc3 {[%clk 0:03:00.4]}
5... a6 {[%clk 0:02:59.4]} 6. Bg5 {[%clk 0:02:57.7]} 6... e6 {[%clk 0:02:57.5]}
7. Qe2 {[%clk 0:02:53.2]} 7... h6 {[%clk 0:02:53]} 8. Bh4 {[%clk 0:02:50.8]}
8... Qb6 {[%clk 0:02:42.9]} 9. O-O-O {[%clk 0:02:47.4]} 9... Be7 {[%clk
0:02:38.8]} 10. f4 {[%clk 0:02:41.1]} 10... Nbd7 {[%clk 0:02:21.2]} 11. Kb1
{[%clk 0:02:16]} 11... Qc7 {[%clk 0:02:18]} 12. g4 {[%clk 0:01:44.4]} 12... b5
{[%clk 0:01:50.7]} 13. a3 {[%clk 0:01:39.3]} 13... Bb7 {[%clk 0:01:50.2]} 14.
Bg2 {[%clk 0:01:36.1]} 14... Rc8 {[%clk 0:01:48.3]} 15. Rhe1 {[%clk 0:01:22.6]}
15... Nc5 {[%clk 0:01:26.7]} 16. e5 {[%clk 0:01:08.4]} 16... dxe5 {[%clk
0:01:19.3]} 17. fxe5 {[%clk 0:01:09.3]} 17... Nfd7 {[%clk 0:00:54.6]} 18. Bxe7
{[%clk 0:00:51.2]} 18... Kxe7 {[%clk 0:00:55.5]} 19. Ndxb5 {[%clk 0:00:45.1]}
19... axb5 {[%clk 0:00:47.5]} 20. Nxb5 {[%clk 0:00:46]} 20... Qb8 {[%clk
0:00:22.4]} 21. Bxb7 {[%clk 0:00:26.5]} 21... Nxb7 {[%clk 0:00:15.8]} 22. Qd2
{[%clk 0:00:23.4]} 22... Rhd8 {[%clk 0:00:15.2]} 23. Qb4+ {[%clk 0:00:19.8]}
23... Ndc5 {[%clk 0:00:13.5]} 24. Rxd8 {[%clk 0:00:15.7]} 24... Rxd8 {[%clk
0:00:13.6]} 25. Nd6 {[%clk 0:00:14.9]} 25... Nxd6 {[%clk 0:00:13.1]} 26. Qxc5
{[%clk 0:00:15.1]} 26... Rc8 {[%clk 0:00:10.5]} 27. exd6+ {[%clk 0:00:14.3]}
27... Qxd6 {[%clk 0:00:10.9]} 28. Qxc8 {[%clk 0:00:13.9]} 1-0

[Event "*** Titled Tuesday Blitz"]
[Site "Chess.com"]
[Date "2021.03.02"]
[Round "1"]
[White "losersgame"]
[Black "Iskusnyh"]
[Result "0-1"]
[WhiteElo "2309"]
[BlackElo "2613"]
[TimeControl "180+1"]
[EndTime "10:06:51 PST"]
[Termination "Iskusnyh won on time"]

1. d4 {[%clk 0:02:59.6]} 1... d5 {[%clk 0:02:59.3]} 2. c4 {[%clk 0:02:59.1]}
2... c6 {[%clk 0:02:58.2]} 3. Nc3 {[%clk 0:02:58.1]} 3... Nf6 {[%clk 0:02:58.2]}
4. Nf3 {[%clk 0:02:57.4]} 4... a6 {[%clk 0:02:57]} 5. a4 {[%clk 0:02:55.1]} 5...
e6 {[%clk 0:02:55.8]} 6. g3 {[%clk 0:02:53.8]} 6... Nbd7 {[%clk 0:02:38.4]} 7.
Bg2 {[%clk 0:02:52.7]} 7... a5 {[%clk 0:02:38.4]} 8. O-O {[%clk 0:02:50]} 8...
Bb4 {[%clk 0:02:38.3]} 9. Qc2 {[%clk 0:02:29.7]} 9... O-O {[%clk 0:02:35.9]} 10.
b3 {[%clk 0:02:14.5]} 10... b6 {[%clk 0:02:32.7]} 11. Rd1 {[%clk 0:02:07.7]}
11... Qe7 {[%clk 0:02:30.2]} 12. Bf4 {[%clk 0:01:57.3]} 12... Ba6 {[%clk
0:02:28.7]} 13. Na2 {[%clk 0:01:52.7]} 13... Ba3 {[%clk 0:02:13.3]} 14. Ne5
{[%clk 0:01:49.2]} 14... Nxe5 {[%clk 0:02:11.2]} 15. Bxe5 {[%clk 0:01:35.6]}
15... Rac8 {[%clk 0:02:05]} 16. Nc1 {[%clk 0:01:22.2]} 16... Nd7 {[%clk
0:01:00.8]} 17. Bf4 {[%clk 0:01:15.3]} 17... Bb4 {[%clk 0:00:37.6]} 18. e4
{[%clk 0:01:08.8]} 18... dxc4 {[%clk 0:00:33.3]} 19. bxc4 {[%clk 0:01:07.4]}
19... e5 {[%clk 0:00:33.7]} 20. Be3 {[%clk 0:00:36.4]} 20... exd4 {[%clk
0:00:33.4]} 21. Bxd4 {[%clk 0:00:36.8]} 21... Ne5 {[%clk 0:00:33.4]} 22. Bxb6
{[%clk 0:00:27.2]} 22... Nxc4 {[%clk 0:00:32]} 23. Bd4 {[%clk 0:00:26.6]} 23...
c5 {[%clk 0:00:30.3]} 24. Bc3 {[%clk 0:00:23]} 24... Ne5 {[%clk 0:00:29.9]} 25.
h3 {[%clk 0:00:17.3]} 25... Qf6 {[%clk 0:00:28.3]} 26. Bb2 {[%clk 0:00:03.9]}
26... Qe7 {[%clk 0:00:19]} 27. f4 {[%clk 0:00:03.2]} 27... Nc4 {[%clk
0:00:18.7]} 28. Bc3 {[%clk 0:00:02.6]} 28... Ne3 {[%clk 0:00:18.7]} 0-1

[Event "*** Titled Tuesday Blitz"]
[Site "Chess.com"]
[Date "2021.03.02"]
[Round "1"]
[White "yuki_chess123"]
[Black "PrinceMurad09"]
[Result "1-0"]
[WhiteElo "2224"]
[BlackElo "2517"]
[TimeControl "180+1"]
[EndTime "10:06:53 PST"]
[Termination "yuki_chess123 won by resignation"]

1. Nf3 {[%clk 0:02:57]} 1... c5 {[%clk 0:02:59.8]} 2. e4 {[%clk 0:02:55.9]} 2...
d6 {[%clk 0:02:59.5]} 3. Bb5+ {[%clk 0:02:55.8]} 3... Nd7 {[%clk 0:02:58.9]} 4.
c4 {[%clk 0:02:55.3]} 4... g6 {[%clk 0:02:58.1]} 5. Nc3 {[%clk 0:02:55.1]} 5...
Bg7 {[%clk 0:02:57.7]} 6. d4 {[%clk 0:02:55.6]} 6... cxd4 {[%clk 0:02:55.7]} 7.
Nxd4 {[%clk 0:02:56]} 7... a6 {[%clk 0:02:55]} 8. Bxd7+ {[%clk 0:02:54.8]} 8...
Bxd7 {[%clk 0:02:54.9]} 9. Be3 {[%clk 0:02:47.8]} 9... Rc8 {[%clk 0:02:54.7]}
10. Qe2 {[%clk 0:02:43.3]} 10... Qc7 {[%clk 0:02:39.6]} 11. b3 {[%clk
0:02:38.1]} 11... b5 {[%clk 0:02:36.3]} 12. Nd5 {[%clk 0:02:37.8]} 12... Qa5+
{[%clk 0:02:31.7]} 13. b4 {[%clk 0:02:28.6]} 13... Qa3 {[%clk 0:02:21.3]} 14.
cxb5 {[%clk 0:01:24.2]} 14... e6 {[%clk 0:02:09.2]} 15. O-O {[%clk 0:00:32.5]}
15... exd5 {[%clk 0:02:08.3]} 16. exd5 {[%clk 0:00:32.4]} 16... axb5 {[%clk
0:02:05.9]} 17. Bc1+ {[%clk 0:00:32.1]} 17... Kf8 {[%clk 0:02:01.2]} 18. Bxa3
{[%clk 0:00:31.2]} 18... Bxd4 {[%clk 0:02:01.4]} 19. Bb2 {[%clk 0:00:31.7]}
19... Bf6 {[%clk 0:01:55.9]} 20. Bxf6 {[%clk 0:00:27.9]} 20... Nxf6 {[%clk
0:01:55.9]} 21. Qb2 {[%clk 0:00:28.5]} 21... Kg7 {[%clk 0:01:53.8]} 22. Rac1
{[%clk 0:00:26.5]} 22... h5 {[%clk 0:01:37.2]} 23. h3 {[%clk 0:00:26]} 23... g5
{[%clk 0:01:34.3]} 24. Qd4 {[%clk 0:00:24.7]} 24... Kg6 {[%clk 0:01:30.4]} 25.
f4 {[%clk 0:00:23.8]} 25... g4 {[%clk 0:01:24.7]} 26. f5+ {[%clk 0:00:23.6]}
26... Kg7 {[%clk 0:01:22.2]} 27. h4 {[%clk 0:00:17.9]} 27... Rxc1 {[%clk
0:01:18]} 28. Rxc1 {[%clk 0:00:17.3]} 28... Re8 {[%clk 0:01:18.9]} 29. Qf4
{[%clk 0:00:14.6]} 29... Nh7 {[%clk 0:01:18.3]} 30. f6+ {[%clk 0:00:13.9]} 30...
Kg6 {[%clk 0:01:14.6]} 31. Qxd6 {[%clk 0:00:14.1]} 31... Bf5 {[%clk 0:01:13.2]}
32. Rf1 {[%clk 0:00:12.3]} 32... Bd3 {[%clk 0:01:08.9]} 33. Rf2 {[%clk
0:00:10.9]} 33... Re3 {[%clk 0:01:04.6]} 34. g3 {[%clk 0:00:10.2]} 34... Be4
{[%clk 0:01:02.5]} 35. Kh2 {[%clk 0:00:09.6]} 35... Re1 {[%clk 0:01:02.1]} 36.
Rg2 {[%clk 0:00:09.7]} 36... Nxf6 {[%clk 0:01:00.1]} 37. Qf4 {[%clk 0:00:08.4]}
37... Bxg2 {[%clk 0:00:56.4]} 38. Kxg2 {[%clk 0:00:08.8]} 38... Nxd5 {[%clk
0:00:56.9]} 39. Qg5+ {[%clk 0:00:09.2]} 39... Kh7 {[%clk 0:00:56.5]} 40. Qxd5
{[%clk 0:00:09.9]} 40... Re2+ {[%clk 0:00:55.4]} 41. Kf1 {[%clk 0:00:10.4]}
41... Rb2 {[%clk 0:00:53.3]} 42. Qxh5+ {[%clk 0:00:10.5]} 42... Kg8 {[%clk
0:00:53.7]} 43. Qxg4+ {[%clk 0:00:10.9]} 43... Kf8 {[%clk 0:00:54.6]} 44. Qc8+
{[%clk 0:00:11]} 44... Kg7 {[%clk 0:00:55.1]} 45. Qc3+ {[%clk 0:00:10.7]} 45...
f6 {[%clk 0:00:56]} 46. Qxb2 {[%clk 0:00:11.3]} 46... Kg6 {[%clk 0:00:56.9]} 47.
Qc3 {[%clk 0:00:11.8]} 1-0

[Event "*** Titled Tuesday Blitz"]
[Site "Chess.com"]
[Date "2021.03.02"]
[Round "1"]
[White "dcremisi"]
[Black "HanSchut"]
[Result "1-0"]
[WhiteElo "2548"]
[BlackElo "2231"]
[TimeControl "180+1"]
[EndTime "10:06:54 PST"]
[Termination "dcremisi won by resignation"]

1. d4 {[%clk 0:02:50.7]} 1... Nf6 {[%clk 0:02:58.7]} 2. c4 {[%clk 0:02:50.7]}
2... g6 {[%clk 0:02:58.5]} 3. Nc3 {[%clk 0:02:50.3]} 3... d5 {[%clk 0:02:59]} 4.
cxd5 {[%clk 0:02:50.3]} 4... Nxd5 {[%clk 0:02:59.9]} 5. e4 {[%clk 0:02:50.6]}
5... Nxc3 {[%clk 0:03:00.3]} 6. bxc3 {[%clk 0:02:51.5]} 6... Bg7 {[%clk
0:03:00.9]} 7. Bg5 {[%clk 0:02:51.4]} 7... c5 {[%clk 0:02:59.6]} 8. Rc1 {[%clk
0:02:51.9]} 8... O-O {[%clk 0:02:52.4]} 9. Nf3 {[%clk 0:02:51]} 9... Bg4 {[%clk
0:02:50.8]} 10. d5 {[%clk 0:02:46.5]} 10... Qd6 {[%clk 0:02:44.7]} 11. Be2
{[%clk 0:02:42.4]} 11... Nd7 {[%clk 0:02:43.8]} 12. O-O {[%clk 0:02:41.4]} 12...
f5 {[%clk 0:02:44]} 13. h3 {[%clk 0:02:11.5]} 13... Bxf3 {[%clk 0:02:15.9]} 14.
Bxf3 {[%clk 0:02:11.1]} 14... fxe4 {[%clk 0:02:14.1]} 15. Bxe4 {[%clk
0:02:11.1]} 15... Qe5 {[%clk 0:02:00.2]} 16. Qg4 {[%clk 0:01:55.9]} 16... Nf6
{[%clk 0:01:50.2]} 17. Bxf6 {[%clk 0:01:55]} 17... exf6 {[%clk 0:01:50.7]} 18.
Qe6+ {[%clk 0:01:52.5]} 18... Kh8 {[%clk 0:01:41.3]} 19. f4 {[%clk 0:01:37.3]}
19... Qxe6 {[%clk 0:01:29.1]} 20. dxe6 {[%clk 0:01:23.1]} 20... Rae8 {[%clk
0:01:29.7]} 21. f5 {[%clk 0:01:20.4]} 21... gxf5 {[%clk 0:01:25.4]} 22. Bxf5
{[%clk 0:01:19.7]} 22... b6 {[%clk 0:01:20.9]} 23. Rcd1 {[%clk 0:01:19.5]} 23...
Re7 {[%clk 0:01:21.1]} 24. Rd7 {[%clk 0:01:17.8]} 24... Rfe8 {[%clk 0:01:20.9]}
25. Rfd1 {[%clk 0:01:17.3]} 25... Bf8 {[%clk 0:01:15.6]} 26. Kf2 {[%clk
0:01:10.9]} 26... Kg7 {[%clk 0:01:10.1]} 27. R7d3 {[%clk 0:01:00.8]} 27... Kh8
{[%clk 0:00:49.3]} 28. Kf3 {[%clk 0:00:53.8]} 28... Kg7 {[%clk 0:00:40]} 29. Ke4
{[%clk 0:00:51.4]} 29... Rxe6+ {[%clk 0:00:32.3]} 30. Bxe6 {[%clk 0:00:51.2]}
30... Rxe6+ {[%clk 0:00:33.2]} 31. Kf3 {[%clk 0:00:50.4]} 31... Kg6 {[%clk
0:00:24.3]} 32. Rd7 {[%clk 0:00:47.6]} 32... Bh6 {[%clk 0:00:20.4]} 33. Kf2
{[%clk 0:00:41.7]} 33... a5 {[%clk 0:00:19.3]} 34. R1d6 {[%clk 0:00:38.7]} 34...
Re3 {[%clk 0:00:19.1]} 35. Rd3 {[%clk 0:00:35.7]} 35... Re6 {[%clk 0:00:17.7]}
36. R7d6 {[%clk 0:00:32.8]} 36... Re5 {[%clk 0:00:15]} 37. Rxb6 {[%clk
0:00:32.3]} 37... Rf5+ {[%clk 0:00:15.6]} 38. Rf3 {[%clk 0:00:30.3]} 38... Rd5
{[%clk 0:00:16.3]} 39. Rfxf6+ {[%clk 0:00:29.7]} 1-0

[Event "*** Titled Tuesday Blitz"]
[Site "Chess.com"]
[Date "2021.03.02"]
[Round "1"]
[White "Synctel"]
[Black "oganromchess"]
[Result "0-1"]
[WhiteElo "2018"]
[BlackElo "2487"]
[TimeControl "180+1"]
[EndTime "10:06:55 PST"]
[Termination "oganromchess won on time"]

1. e4 {[%clk 0:03:00.5]} 1... e6 {[%clk 0:03:00]} 2. d4 {[%clk 0:02:53.1]} 2...
d5 {[%clk 0:03:00.1]} 3. Nd2 {[%clk 0:02:53.7]} 3... Nf6 {[%clk 0:02:59.3]} 4.
e5 {[%clk 0:02:53.7]} 4... Nfd7 {[%clk 0:02:59.2]} 5. Bd3 {[%clk 0:02:54.3]}
5... c5 {[%clk 0:02:59.2]} 6. c3 {[%clk 0:02:45.7]} 6... Nc6 {[%clk 0:02:58.9]}
7. Ngf3 {[%clk 0:02:46]} 7... b6 {[%clk 0:02:56.7]} 8. a3 {[%clk 0:02:33.2]}
8... g5 {[%clk 0:02:52.2]} 9. h3 {[%clk 0:02:17.9]} 9... h5 {[%clk 0:02:45.9]}
10. Nf1 {[%clk 0:01:41]} 10... Rg8 {[%clk 0:02:43.6]} 11. g4 {[%clk 0:01:40.1]}
11... h4 {[%clk 0:02:42.8]} 12. Be3 {[%clk 0:01:36.7]} 12... Bb7 {[%clk
0:02:41.2]} 13. Qd2 {[%clk 0:01:36.2]} 13... Be7 {[%clk 0:02:40.7]} 14. N1h2
{[%clk 0:01:05]} 14... f6 {[%clk 0:02:38.1]} 15. exf6 {[%clk 0:00:58.9]} 15...
Bxf6 {[%clk 0:02:37.8]} 16. O-O {[%clk 0:00:55.3]} 16... e5 {[%clk 0:02:30.5]}
17. dxe5 {[%clk 0:00:50.6]} 17... Ndxe5 {[%clk 0:02:29]} 18. Bf5 {[%clk
0:00:48.1]} 18... Nxf3+ {[%clk 0:02:08.8]} 19. Nxf3 {[%clk 0:00:47.6]} 19... d4
{[%clk 0:01:42.3]} 20. cxd4 {[%clk 0:00:45.2]} 20... cxd4 {[%clk 0:01:42]} 21.
Nxd4 {[%clk 0:00:36.9]} 21... Nxd4 {[%clk 0:01:33]} 22. Bxd4 {[%clk 0:00:36.8]}
22... Qxd4 {[%clk 0:01:24.1]} 23. Qe2+ {[%clk 0:00:20.7]} 23... Qe5 {[%clk
0:01:20.4]} 24. Qc4 {[%clk 0:00:19.1]} 24... Qd5 {[%clk 0:01:10.8]} 25. Rfe1+
{[%clk 0:00:18.4]} 25... Kf8 {[%clk 0:01:07.3]} 26. Qb4+ {[%clk 0:00:15.7]}
26... Qc5 {[%clk 0:00:46.3]} 27. Qb3 {[%clk 0:00:12.4]} 27... Bd4 {[%clk
0:00:29.1]} 28. Re2 {[%clk 0:00:06.4]} 28... Qd5 {[%clk 0:00:20.2]} 29. Qxd5
{[%clk 0:00:01.2]} 29... Bxd5 {[%clk 0:00:21.1]} 0-1